[Event "Slovakian ECo-C Extraliga 2024-25"]
[Site "Slovakia"]
[Date "2025.01.19"]
[Round "4"]
[White "Pechac, Jergus"]
[Black "Mazur, Stefan"]
[Result "1-0"]
[Annotator "TA"]
[ECO "C50"]
[WhiteElo "2599"]
[BlackElo "2444"]
[PlyCount "87"]
[EventDate "2024.09.12"]
[EventType "team-tourn"]
[EventCountry "SVK"]
[SourceTitle "playchess.com"]
[Source "ChessBase"]
[SourceQuality "1"]
[TimeControl "5400+30"]

{[%evp 14,87,12,0,9,7,28,19,16,24,25,13,14,0,4,0,0,0,11,10,12,3,27,11,15,0,21,14,52,23,38,26,56,64,32,0,0,0,0,-31,0,0,0,-44,-42,-41,-41,-41,-35,-91,-87,-83,-41,-51,-20,-25,18,32,34,13,678,635,704,679,857,826,816,806,1225,1119,1421,1253,1022,981,826,796]} 1. e4 {[%emt 0:00:04]} e5 {[%emt 0:00:52]} 2. Nf3 {[%emt 0:00:05]} Nc6 {[%emt 0:00:42]} 3. Bc4 {[%emt 0:00:07]} Nf6 {[%emt 0:00:14]} 4. d3 {[%emt 0:00:05]} Bc5 {[%emt 0:00:57]} 5. c3 {[%emt 0:00:09]} d6 {[%emt 0:00:59]} 6. O-O {[%emt 0:00:18]} h6 {[%emt 0:00:55]} 7. Re1 {[%emt 0:00:35]} O-O {[%emt 0:04:19]} 8. h3 {[%emt 0:00:13]} a5 {[%emt 0:00:40]} 9. Bb5 {[%emt 0:00:15]} Na7 {[%emt 0:01:59]} 10. Ba4 {[%emt 0:00:25]} b5 {[%emt 0:01:19]} 11. Bc2 {[%emt 0:00:31]} Nc6 {[%emt 0:05:18]} 12. d4 {[%emt 0:04:07]} Bb6 {[%emt 0:06:24]} 13. a4 {[%emt 0:04:07]} b4 {[%emt 0:01:56]} 14. Be3 {[%emt 0:00:06]} bxc3 {[%emt 0:11:19]} 15. bxc3 {[%emt 0:00:25]} exd4 {[%emt 0:03:59]} 16. cxd4 {[%emt 0:00:05]} Nb4 {[%emt 0:00:13]} 17. Nc3 {[%emt 0:00:07]} Re8 {[%emt 0:02:29]} 18. d5 {[%emt 0:01:46]} Nd7 {[%emt 0:08:25]} 19. Bb1 {[%emt 0:05:43]} Qf6 {[%emt 0:04:01]} 20. Ra3 {[%emt 0:00:25]} Ba6 {[%emt 0:02:47]} 21. Ne2 {[%emt 0:07:14]} Ne5 {[%emt 0:09:14]} 22. Bxb6 {[%emt 0:13:39]} Bxe2 {[%emt 0:00:28]} 23. Qxe2 {[%emt 0:04:08]} cxb6 {[%emt 0:00:08]} 24. Qb5 {[%emt 0:00:26]} Rec8 {[%emt 0:02:02]} 25. Nxe5 {[%emt 0:03:44]} Qxe5 {[%emt 0:00:19]} 26. Qxb6 {[%emt 0:01:41]} Rc5 {[%emt 0:05:36]} 27. Rf3 {[%emt 0:05:44][%cal Of3f7]} Rac8 {[%emt 0:02:24]} 28. Bd3 {[%emt 0:00:53]} Rc1 {[%emt 0:09:40]} 29. Rxc1 {[%emt 0:00:10]} Rxc1+ {[%emt 0:00:05]} 30. Bf1 {[%emt 0:00:03]} Qxe4 {[%emt 0:00:51]} 31. Qb8+ {[%emt 0:00:09]} (31. Qxd6 $2 Qe2 32. Qb8+ Kh7 $19) (31. Qxa5 $2 Qc4 32. Kh2 Rxf1 $19) (31. Qb7 $15 Qxd5 (31... Nxd5 32. Qxf7+ Kh8 33. g4 $11) 32. Qb8+ Kh7 33. Qb5) 31... Kh7 $17 {[%emt 0:00:06]} 32. Qb5 {[%emt 0:00:05] Dodges Nd3} (32. Qxd6 $2 Qc4 (32... Qxd5 33. Qxd5 Nxd5 34. Rxf7 $16) 33. Kh2 Rxf1 $19 (33... Qxf1 34. Qe5 $11)) (32. Rxf7 $2 Rxf1+ (32... Qxd5 33. Qe8 $11) 33. Kh2 Qe5+ (33... Nxd5 $2 34. Qxd6 Rd1 35. Qg3 $19) (33... Qxd5 $2 34. Qf8 $19) 34. f4 Qe1 $19 (34... Qxd5 $2 35. Qa7 $18) (34... Rxf4 $2 35. Rxf4 Qxf4+ 36. Kh1 $19)) 32... Nxd5 {[%emt 0:03:47] White is weak on the dark squares} 33. Kh2 $1 {[%emt 0:03:46][%cal Of1d3]} Qe5+ {[%emt 0:03:10]} 34. g3 {[%emt 0:00:47]} f5 {[%emt 0:02:06] [#]} (34... Nc7 {simplifies} 35. Qb3 Qe6 36. Qxe6 Nxe6 37. Bb5 Ng5) 35. Rxf5 $1 {[%emt 0:01:10]} Qe1 $1 {[%emt 0:01:23] aiming for ...Nc3.} (35... Qxf5 $2 36. Bd3 $18) 36. Kg2 {[%emt 0:09:00]} (36. Rxd5 Qxf2+ (36... Qxf1 37. Qxf1 Rxf1 38. Kg2 $16) 37. Kh1 Rxf1+ (37... Qxf1+ 38. Qxf1 Rxf1+ 39. Kg2 $11)) 36... Ne3+ $2 {[%emt 0:06:24][%mdl 8192]} 37. fxe3 $18 {[%emt 0:00:02]} Rc2+ {[%emt 0:00:04] [#]} 38. Kf3 $1 {[%emt 0:00:05][%cal Of1d3] And now Bd3! would win.} Rf2+ {[%emt 0:00:15]} 39. Ke4 {[%emt 0:00:02]} d5+ {[%emt 0:00:43]} 40. Qxd5 {[%emt 0:00:45]} (40. Kxd5 $2 {perishes.} Rxf5+ 41. Kc6 Rxb5 $19) 40... Qb4+ {[%emt 0:00:45]} 41. Bc4 {[%emt 0:00:19]} Qb1+ {[%emt 0:00:00]} 42. Bd3 {[%emt 0:00:00]} Qb4+ {[%emt 0:00:00]} 43. Qc4 {[%emt 0:00:00] White threatens Qxb4 and mate.} Qe7+ {[%emt 0:00:00]} 44. Kd4 {[%emt 0:00:00]} 1-0

[Event "Slovakian ECo-C Extraliga 2024-25"]
[Site "Slovakia"]
[Date "2025.01.19"]
[Round "4"]
[White "Michalik, Peter"]
[Black "Karacsonyi, Gellert"]
[Result "1-0"]
[Annotator "TA"]
[ECO "D24"]
[WhiteElo "2558"]
[BlackElo "2384"]
[PlyCount "97"]
[EventDate "2024.09.12"]
[EventType "team-tourn"]
[EventCountry "SVK"]
[SourceTitle "playchess.com"]
[Source "ChessBase"]
[SourceQuality "1"]
[TimeControl "5400+30"]

{[%evp 9,97,25,47,47,59,50,62,55,43,37,48,14,21,27,27,14,39,37,39,0,0,-33,-4,-35,109,59,138,127,152,146,145,154,222,203,200,212,202,191,181,172,202,192,203,217,340,343,335,320,498,494,542,535,535,527,512,523,516,484,508,506,752,752,729,534,758,530,500,549,552,518,703,686,927,885,932,937,1403,1456,1924,1790,2225,2317,2485,2317,2093,1908,29975,2538,29980,29982]} 1. d4 {[%emt 0:00:04]} Nf6 {[%emt 0:00:08]} 2. c4 {[%emt 0:00:06]} e6 {[%emt 0:00:09]} 3. Nf3 {[%emt 0:00:07]} d5 {[%emt 0:00:08]} 4. Nc3 {[%emt 0:00:06]} dxc4 {[%emt 0:00:15]} 5. e4 {[%emt 0:00:15][%cal Be2e4,Be4e5][%mdl 32]} b5 {[%emt 0:00:07]} 6. e5 $1 {[%emt 0:00:07] D24: Queen's Gambit Accepted: 3 Nf3 Nf6 4 Nc3.} Nd5 {[%emt 0:00:05]} 7. Nxb5 {[%emt 0:00:09]} Nb6 {[%emt 0:00:07]} 8. Be2 {[%emt 0:00:18] White is slightly better. White is much more active.} Nc6 {[%emt 0:00:26]} 9. Be3 {[%emt 0:00:08]} Be7 {[%emt 0:01:17]} 10. a3 {[%emt 0:00:33]} Qd7 {[%emt 0:00:07]} 11. Nc3 {[%emt 0:00:30]} Bb7 {[%emt 0:02:57]} 12. Qc2 {[%emt 0:01:44]} Na5 {[%emt 0:00:10]} 13. Rd1 {[%emt 0:09:40]} f5 {[%emt 0:00:10]} 14. h4 $5 {[%emt 0:00:30][%mdl 4] Leaves trodden paths.} O-O {[%emt 0:14:36]} 15. h5 $146 {[%emt 0:04:52]} (15. Rg1 Rad8 16. Ng5 Bxg5 17. Bxg5 Rb8 18. h5 h6 19. Bh4 Nb3 20. g4 Nxd4 21. Qc1 {1-0 Gajewski,G (2608)-Kollars,D (2621) POL-chT Ekstraliga 2021 (8.2)}) 15... Rab8 {[%emt 0:09:44]} 16. O-O {[%emt 0:04:17]} Ba6 {[%emt 0:13:09]} (16... h6 $15 {stays ahead.}) 17. h6 {[%emt 0:07:26] White now steadily converts the win.} ({White should play} 17. d5 $1 $16) 17... g6 {[%emt 0:00:38] [#]} ({Black should play} 17... f4 $1 $14) 18. d5 $1 $16 {[%emt 0:03:48][%mdl 512]} Bb7 {[%emt 0:20:06]} 19. dxe6 {[%emt 0:03:10][%csl Oe6] White has a strong passed pawn} Qxe6 {[%emt 0:05:44]} 20. Nb5 {[%emt 0:00:46]} f4 {[%emt 0:13:52]} (20... c5 $16 {was necessary.} 21. Rfe1 (21. Nxa7 Nb3 $16) 21... f4) 21. Nxc7 {[%emt 0:03:24]} Qf5 {[%emt 0:01:49]} 22. Qxf5 {[%emt 0:00:56]} Rxf5 {[%emt 0:00:18]} 23. Bd2 {[%emt 0:03:14]} Nb3 {[%emt 0:01:44]} 24. Bc3 {[%emt 0:00:43]} Nc5 {[%emt 0:08:26]} 25. Nb5 {[%emt 0:04:36][%cal Bc7b5,Bb5d6,Bd6f5,Bf5e7][%mdl 32]} Ne4 {[%emt 0:00:47]} 26. Bd4 {[%emt 0:03:00][%cal Od4b6]} Bc5 {[%emt 0:00:54]} (26... Ng5 $142 27. Nxg5 (27. Nxa7 Nxf3+ 28. gxf3 Rg5+ 29. Kh2 Rh5+ 30. Kg2 Rg5+ 31. Kh1 Rh5+ 32. Kg1 Rg5+ 33. Kh2 Rh5+ 34. Kg2 Rg5+ 35. Kh1 Rh5+ 36. Kg1 Rg5+ $11) (27. Nh4 Nh3+ 28. Kh2 Bxh4 $18) 27... Rxg5) 27. Rfe1 $18 {[%emt 0:03:51]} Bxd4 {[%emt 0:02:34]} 28. Rxd4 {[%emt 0:01:01]} Ng5 {[%emt 0:01:12]} (28... Kf8 $142 29. Nxa7 (29. Bxc4 Nxc4 30. Rxc4 Bd5 $18) 29... Nc5) 29. Nd6 {[%emt 0:04:43]} (29. Nxa7 Re8 30. e6 (30. Bxc4+ Nxc4 31. Nxg5 Rxg5 $17) 30... Bd5 31. Nxg5 Rxg5 $18) 29... Bxf3 {[%emt 0:00:09][%cal Bb7f3,Bf3e2,Be2d3][%mdl 32]} 30. Nxf5 {[%emt 0:04:49]} ({Less strong is} 30. gxf3 Rxe5 31. Kf1 (31. Nxc4 $2 {is the wrong capture.} Rxe2 32. Rxe2 Nxf3+ 33. Kg2 Nxd4 $19) 31... Ne6 32. Bxc4 (32. Nxc4 $2 Rxe2 33. Rxe2 Nxd4 $19) 32... Rxe1+ 33. Kxe1 Nxc4 34. Rxc4 Kf8 $16) 30... Bxe2 {[%emt 0:00:05]} 31. Ne7+ {[%emt 0:00:05]} Kf7 {[%emt 0:01:23] [#] White must now prevent ...Bf3.} 32. Nc6 $1 {[%emt 0:00:07]} (32. Rxf4+ Kxe7 33. Rxe2 Ne6 $11) 32... Rc8 {[%emt 0:00:54]} 33. Rxf4+ {[%emt 0:01:12]} Ke8 {[%emt 0:00:09]} 34. Nxa7 {[%emt 0:00:19]} Bd3 {[%emt 0:01:25]} 35. Nxc8 {[%emt 0:02:00]} Nxc8 {[%emt 0:00:04]} 36. Rd4 {[%emt 0:00:24]} Ne7 {[%emt 0:01:42]} 37. Re3 {[%emt 0:01:06]} Ne6 {[%emt 0:00:34]} 38. Rdxd3 {[%emt 0:00:46]} cxd3 {[%emt 0:00:09]} 39. Rxd3 {[%emt 0:00:04]} Nf4 {[%emt 0:00:12]} 40. Rd6 {[%emt 0:00:25]} Nf5 {[%emt 0:00:27]} 41. Rf6 {[%emt 0:01:48]} Nd3 {[%emt 0:00:00] [#]} 42. Rxg6 $1 {[%emt 0:00:00]} Nxb2 {[%emt 0:00:00] [#]} (42... Nc5 43. b4) 43. g4 $1 {[%emt 0:00:00]} Nh4 {[%emt 0:00:00]} (43... Nd4 44. Rg8+) 44. Rg8+ {[%emt 0:00:00]} Kf7 {[%emt 0:00:00]} 45. Rg7+ {[%emt 0:00:00]} Ke6 {[%emt 0:00:00]} 46. Rxh7 {[%emt 0:00:00] Hoping for Rg7.} Nd3 {[%emt 0:00:00]} 47. Rg7 {[%emt 0:00:00] Intending h7 and mate.} Nxe5 {[%emt 0:00:00]} 48. h7 {[%emt 0:00:00]} (48. f4 $142 Nf7 49. h7 Nh8 50. Rg8 Kf6 51. f5 (51. Rxh8 Kg7 $18) 51... Nf7 52. Kf2 (52. h8=R Nxh8 53. Rxh8 Nf3+ 54. Kg2 Ne5 $18) (52. h8=N Nd6 $18) (52. h8=B+ Nxh8 53. Rxh8 Nf3+ 54. Kg2 Ne5 $18) 52... Nf3 53. Kxf3) 48... Neg6 {[%emt 0:00:00] [#]} 49. f4 $1 {[%emt 0:00:00] Weighted Error Value: White=0.21 (precise) /Black=0.84  Mistake:       	White=1     	Black=5      Inaccurate:     	White=4     	Black=4      OK:         	White=14    	Black=10     Best:        	White=2     	Black=1      Strong:       	White=1     	---        Brilliant:      	White=1     	---} 1-0

[Event "Slovakian ECo-C Extraliga 2024-25"]
[Site "Slovakia"]
[Date "2025.01.19"]
[Round "4"]
[White "Haring, Filip"]
[Black "Moroni, Luca Jr"]
[Result "0-1"]
[Annotator "TA"]
[ECO "B10"]
[WhiteElo "2469"]
[BlackElo "2545"]
[PlyCount "106"]
[EventDate "2024.09.12"]
[EventType "team-tourn"]
[EventCountry "SVK"]
[SourceTitle "playchess.com"]
[Source "ChessBase"]
[SourceQuality "1"]
[TimeControl "5400+30"]

{[%evp 9,106,0,25,21,16,9,14,8,14,9,4,12,30,7,0,15,21,0,20,14,18,0,4,2,0,0,0,0,24,18,30,14,42,42,29,0,0,0,0,0,0,0,0,4,13,0,0,-13,0,-7,-4,-6,0,0,12,-18,0,-15,-6,-25,-5,-14,-18,-17,38,-14,-21,-78,-81,-79,-32,-39,-31,-29,-22,-133,-118,-112,-115,-110,-118,-118,-125,-136,-132,-429,-433,-412,-381,-475,-485,-5306,-5306,-5043,-2392,-1735,-335,-29987,-29988]} 1. e4 {[%emt 0:00:04]} c6 {[%emt 0:00:07]} 2. Nf3 {[%emt 0:00:48]} d5 {[%emt 0:00:08]} 3. d3 {[%emt 0:01:27]} g6 {[%emt 0:00:18]} 4. Nbd2 {[%emt 0:00:26]} Bg7 {[%emt 0:00:14]} 5. d4 {[%emt 0:01:05]} dxe4 {[%emt 0:00:57]} 6. Nxe4 {[%emt 0:00:05]} Nf6 {[%emt 0:00:05]} 7. Nxf6+ {[%emt 0:00:36]} exf6 {[%emt 0:00:07]} 8. Be2 {[%emt 0:03:05] The position is equal.} O-O {[%emt 0:05:03]} 9. O-O {[%emt 0:00:06]} Re8 {[%emt 0:02:12]} 10. Be3 {[%emt 0:02:24]} a5 {[%emt 0:02:36]} 11. c4 {[%emt 0:04:09]} Na6 {[%emt 0:04:43]} 12. Qd2 {[%emt 0:01:49]} Bf8 {[%emt 0:05:12][%cal Bg7f8,Bf8b4,Bb4d6][%mdl 32]} 13. Rfd1 {[%emt 0:03:57]} Bb4 {[%emt 0:03:08]} 14. Qc1 {[%emt 0:05:20]} Bd6 {[%emt 0:03:03]} 15. h3 {[%emt 0:09:46]} Bf5 {[%emt 0:04:03]} 16. a3 {[%emt 0:18:58]} a4 {[%emt 0:06:33]} 17. Qc3 {[%emt 0:06:45]} Nc7 {[%emt 0:03:49]} 18. Bd3 {[%emt 0:03:19]} Be6 {[%emt 0:08:13]} 19. Rac1 {[%emt 0:04:15]} Bd7 {[%emt 0:11:41]} 20. Bf1 {[%emt 0:01:54]} h5 {[%emt 0:05:23]} 21. Qd2 {[%emt 0:04:42]} Bf5 {[%emt 0:02:36]} 22. Bd3 {[%emt 0:04:24] With the idea Bxf5.} Qd7 {[%emt 0:01:46]} 23. Bxf5 {[%emt 0:04:34]} Qxf5 {[%emt 0:00:08]} 24. Qd3 {[%emt 0:02:37]} Qxd3 {[%emt 0:01:34]} 25. Rxd3 {[%emt 0:00:03]} f5 {[%emt 0:00:28]} 26. Kf1 {[%emt 0:01:21]} f6 {[%emt 0:04:04]} 27. Bd2 {[%emt 0:02:04]} Kf7 {[%emt 0:03:50]} 28. Ng1 {[%emt 0:02:54][%cal Bf3g1,Bg1e2,Be2c3][%mdl 32]} Ne6 {[%emt 0:01:39][%cal Bc7e6,Be6g7,Bg7f5][%mdl 32]} 29. Ne2 {[%emt 0:03:32]} Red8 {[%emt 0:00:42]} 30. Rd1 {[%emt 0:00:57]} f4 {[%emt 0:04:44]} 31. Be1 {[%emt 0:03:43]} g5 {[%emt 0:01:36]} 32. f3 {[%emt 0:01:37]} Ng7 {[%emt 0:07:09]} 33. Bf2 {[%emt 0:00:38]} Nf5 {[%emt 0:00:06]} 34. Nc3 {[%emt 0:00:36]} Be7 {[%emt 0:03:38]} 35. d5 {[%emt 0:02:20]} c5 {[%emt 0:00:59]} 36. Ne4 {[%emt 0:00:38][%cal Od5d6]} b6 {[%emt 0:00:44]} (36... Nd6 $11) 37. b3 {[%emt 0:01:30]} (37. d6 $14 Bf8 38. h4 gxh4 39. Rd5) 37... Nd6 $11 {[%emt 0:01:31]} 38. Rb1 {[%emt 0:00:30]} (38. Nxd6+ $11 Bxd6 39. Re1) 38... Nxe4 $17 {[%emt 0:02:28]} 39. fxe4 {[%emt 0:00:02]} axb3 {[%emt 0:00:07]} (39... Bd6 $17 {Threatens to win with ...Re8.} 40. g3 axb3) 40. Rdxb3 $15 {[%emt 0:00:17]} Ra4 {[%emt 0:02:06]} 41. Rc3 {[%emt 0:00:00]} Rb8 {[%emt 0:00:00]} 42. Ke2 {[%emt 0:00:00]} (42. Rcb3 $1 $11 {keeps the balance.}) 42... Bd6 {[%emt 0:00:00]} 43. Rcb3 {[%emt 0:00:00]} Rxc4 {[%emt 0:00:00]} 44. Rxb6 {[%emt 0:00:00]} Rc2+ {[%emt 0:00:00]} ({And not} 44... Rxe4+ 45. Kd3 Ree8 (45... Rxb6 $2 46. Rxb6 Ra4 47. Rxd6 $18) 46. Rxb8 Bxb8 47. Bxc5 $16) 45. Kf1 {[%emt 0:00:00]} Rxb6 {[%emt 0:00:00]} 46. Rxb6 $17 {[%emt 0:00:00][%mdl 4096] Endgame. KRB-KRB} Be5 {[%emt 0:00:00] White must now prevent ...g4. Black is more active.} 47. a4 $2 {[%mdl 8192] Loses the game.} (47. Rc6 $17) 47... g4 $19 48. hxg4 {[%emt 0:00:00]} hxg4 {[%emt 0:00:00] [#] Strongly threatening ...g3.} 49. Rc6 {[%emt 0:00:00]} c4 {[%emt 0:00:00]} 50. a5 {[%emt 0:00:00]} (50. d6 $142 f3 51. gxf3 gxf3 52. Be3) 50... f3 {[%emt 0:00:00]} 51. gxf3 {[%emt 0:00:00]} gxf3 {[%emt 0:00:00]} 52. Be3 {[%emt 0:02:36] Wards off Rc1+} Re2 $2 {[%emt 0:00:00]} (52... Bg3 {( -> ...Re2)} 53. e5 fxe5 54. Rc7+ Kg6) 53. Rxc4 $2 {[%emt 0:02:12] [#]} (53. Bf2 $19 Rc2 (53... Rxe4 $2 {too greedy.} 54. a6 $18) 54. Bh4) 53... Bg3 {[%emt 0:00:00] Weighted Error Value: White=0.49/Black=0.16 (very precise) .  Loses game:     	White=1     	---        Mistake:       	White=4     	Black=2      Inaccurate:     	White=1     	Black=1      OK:         	White=19    	Black=21     Best:        	---       	Black=2} 0-1

[Event "Slovakian ECo-C Extraliga 2024-25"]
[Site "Slovakia"]
[Date "2025.01.19"]
[Round "4"]
[White "Raczek, Krzysztof"]
[Black "Borosova, Zuzana"]
[Result "1-0"]
[Annotator "TA"]
[ECO "B90"]
[WhiteElo "2443"]
[BlackElo "2174"]
[PlyCount "91"]
[EventDate "2024.09.12"]
[EventType "team-tourn"]
[EventCountry "SVK"]
[SourceTitle "playchess.com"]
[Source "ChessBase"]
[SourceQuality "1"]
[TimeControl "5400+30"]

{[%evp 18,91,5,3,55,45,48,32,68,44,71,60,59,41,60,55,73,58,85,76,88,88,78,69,76,68,87,56,62,58,74,73,87,40,43,78,117,117,125,103,215,213,214,214,214,214,877,949,668,643,1574,1468,1501,1378,29971,29969,29966,29957,29980,29982,29982,29983,29983,29984,29984,29985,29985,29986,29986,29987,29987,29988,29988,29989,29989,29990]} 1. e4 {[%emt 0:00:06]} c5 {[%emt 0:01:37]} 2. Nf3 {[%emt 0:00:07]} d6 {[%emt 0:00:03]} 3. d4 {[%emt 0:00:27]} cxd4 {[%emt 0:00:47]} 4. Nxd4 {[%emt 0:00:02]} Nf6 {[%emt 0:00:07]} 5. Nc3 {[%emt 0:00:04]} a6 {[%emt 0:00:29]} 6. Be3 {[%emt 0:05:00]} e5 {[%emt 0:00:57]} 7. Nf3 {[%emt 0:00:06]} Be7 {[%emt 0:00:27]} 8. Bc4 {[%emt 0:00:37]} O-O {[%emt 0:00:49]} 9. O-O {[%emt 0:01:43]} Be6 {[%emt 0:01:36]} 10. Bb3 {[%emt 0:00:40]} Bxb3 {[%emt 0:08:09] B90: Sicilian Najdorf: Unusual White 6th moves, 6 Be3 Ng4 and 6 Be3 e5.} (10... Nc6 $11) 11. axb3 {[%emt 0:00:41]} Nbd7 {[%emt 0:00:06]} 12. Bg5 {[%emt 0:04:26]} Rc8 {[%emt 0:03:48] White is slightly better.} 13. Re1 {[%emt 0:28:31]} Ne8 {[%emt 0:11:32]} 14. Bxe7 $146 {[%emt 0:02:29]} (14. Be3 Nef6 15. Nd2 h6 16. Nf1 Qc7 17. Ng3 Rfd8 18. Nf5 Bf8 19. Qf3 Qc6 20. Rad1 {1-0 Hracek,Z (2555)-Fellman,M (2107) Olympiad-44 Chennai 2022 (1.3)}) 14... Qxe7 {[%emt 0:00:29]} 15. Nd2 {[%emt 0:00:30][%cal Bf3d2,Bd2f1,Bf1e3][%mdl 32]} Nb6 {[%emt 0:08:41]} 16. Nf1 {[%emt 0:01:45]} Qe6 {[%emt 0:04:25]} 17. Ne3 {[%emt 0:02:54]} Nf6 {[%emt 0:02:16]} 18. Qf3 {[%emt 0:03:00]} Rfd8 {[%emt 0:01:20]} 19. Red1 {[%emt 0:00:37]} Rd7 {[%emt 0:03:26]} 20. Rd2 {[%emt 0:06:15]} Rcd8 {[%emt 0:00:38]} 21. Ra5 {[%emt 0:00:51]} g6 {[%emt 0:03:52]} 22. h4 {[%emt 0:03:29]} h5 {[%emt 0:02:04]} 23. Ncd5 {[%emt 0:12:44]} Nbxd5 {[%emt 0:01:36]} 24. Nxd5 {[%emt 0:00:22]} Kg7 {[%emt 0:11:24]} 25. c4 {[%emt 0:02:21][%csl Od5] Strong Square White (d5) White is more active.} (25. c3 $16) 25... Nxd5 $14 {[%emt 0:28:09]} 26. Raxd5 {[%emt 0:00:02]} Qg4 {[%emt 0:02:40] Black is now going downhill.} 27. Qxg4 {[%emt 0:04:25]} hxg4 $16 {[%emt 0:00:02][%mdl 4096] Endgame KRR-KRR} 28. c5 {[%emt 0:00:30][%cal Rd5d6]} Kf6 {[%emt 0:00:55]} (28... b6 $16) 29. Rxd6+ {[%emt 0:02:44]} (29. cxd6 Rh8 $11 (29... Ke6 30. Kh2 $17)) 29... Rxd6 {[%emt 0:00:31]} 30. Rxd6+ {[%emt 0:00:01]} ({Don't take} 30. cxd6 Ke6 $16) 30... Rxd6 {[%emt 0:02:35]} 31. cxd6 $18 {[%emt 0:18:31] KP-KP. White is a pawn up.} Ke6 $2 {[%emt 0:00:30] [#]} (31... g3 32. fxg3 Ke6) 32. Kh2 $1 {[%emt 0:00:30]} Kxd6 {[%emt 0:00:30]} 33. Kg3 {[%emt 0:00:30]} Kc5 {[%emt 0:00:30]} 34. Kxg4 {[%emt 0:00:30]} Kb4 {[%emt 0:00:30]} 35. Kf3 {[%emt 0:00:30] aiming for g4.} Kxb3 {[%emt 0:00:30] [#]} 36. g4 $1 {[%emt 0:00:30] White mates.} Kxb2 {[%emt 0:00:30]} 37. h5 {[%emt 0:00:30]} gxh5 {[%emt 0:00:30]} 38. gxh5 {[%emt 0:00:30]} a5 {[%emt 0:00:30][%cal Ba6a5,Ba5a4,Ba4a3,Ba3a2][%mdl 32]} 39. h6 {[%emt 0:00:30]} a4 {[%emt 0:00:30]} 40. h7 {[%emt 0:00:30]} a3 {[%emt 0:00:30]} 41. h8=Q {[%emt 0:00:30]} (41. h8=R $2 a2 42. Rb8 a1=Q $19 (42... a1=B $2 {is the wrong capture.} 43. Rxb7+ Kc2 44. Ke2 $18)) 41... a2 {[%emt 0:00:30]} 42. Qxe5+ {[%emt 0:00:30]} Kb1 {[%emt 0:00:30]} 43. Qb5+ {[%emt 0:00:30]} Kc2 {[%emt 0:00:30]} 44. Qa4+ {[%emt 0:00:30]} Kb2 {[%emt 0:00:30]} 45. Qb4+ {[%emt 0:00:30]} Kc2 {[%emt 0:00:30]} 46. Qa3 {[%emt 0:00:30] Weighted Error Value: White=0.12 (very precise) /Black=0.47  Mistake:       	White=1     	Black=2      Inaccurate:     	White=1     	Black=4      OK:         	White=5     	Black=5      Best:        	White=1     	Black=1      Strong:       	White=1     	---} 1-0

[Event "Slovakian ECo-C Extraliga 2024-25"]
[Site "Slovakia"]
[Date "2025.01.19"]
[Round "4"]
[White "Stohl, Igor"]
[Black "Ongut, Tamas Gunes"]
[Result "1/2-1/2"]
[Annotator "TA"]
[ECO "A20"]
[WhiteElo "2410"]
[BlackElo "2262"]
[PlyCount "43"]
[EventDate "2024.09.12"]
[EventType "team-tourn"]
[EventCountry "SVK"]
[SourceTitle "playchess.com"]
[Source "ChessBase"]
[SourceQuality "1"]
[TimeControl "5400+30"]

{[%evp 9,43,-12,4,5,10,13,6,11,11,-4,2,11,19,8,21,24,17,0,-7,-15,16,-1,43,18,16,12,19,12,13,12,12,10,10,7,10,10]} 1. c4 {[%emt 0:00:06]} e5 {[%emt 0:00:31]} 2. d3 {[%emt 0:00:22]} Nf6 {[%emt 0:02:14]} 3. Nf3 {[%emt 0:00:29]} Nc6 {[%emt 0:00:20]} 4. a3 {[%emt 0:01:13]} a5 {[%emt 0:06:20]} 5. b3 {[%emt 0:04:53]} g6 {[%emt 0:12:03]} 6. Bb2 {[%emt 0:01:03] A20: English Opening: 1...e5.} d6 {[%emt 0:00:09]} 7. e3 {[%emt 0:10:04]} Bg7 {[%emt 0:00:11]} 8. Be2 {[%emt 0:00:09]} O-O {[%emt 0:00:09]} 9. O-O {[%emt 0:00:07]} Re8 {[%emt 0:16:04]} 10. Nc3 {[%emt 0:05:25]} h6 {[%emt 0:13:38]} 11. Rc1 $146 {[%emt 0:08:11]} (11. Qc2 Bf5 12. Rfd1 Qc8 13. Nd5 Ne7 14. Rac1 Qd8 15. Nxf6+ Bxf6 16. Nd2 Bg7 17. Ne4 {1-0 Bharath,S (2515)-Hamblok,R (2241) Titled Tuesday intern op 30th Jan Early blitz 2024 (6)}) 11... e4 {[%emt 0:09:28]} 12. Ne1 {[%emt 0:15:57]} Bf5 {[%emt 0:05:20]} 13. Nb5 {[%emt 0:03:17]} Ne5 {[%emt 0:04:59]} 14. dxe4 {[%emt 0:07:37]} Bxe4 {[%emt 0:00:50]} 15. Nd3 {[%emt 0:06:44]} Ned7 {[%emt 0:05:59]} 16. Bf3 {[%emt 0:04:17]} Bxf3 {[%emt 0:01:59] The position is equal.} 17. Qxf3 {[%emt 0:00:05]} Ne4 {[%emt 0:00:53]} 18. Bxg7 {[%emt 0:02:42]} Kxg7 {[%emt 0:02:45]} 19. Rfd1 {[%emt 0:00:16]} c6 {[%emt 0:00:49]} 20. Nc3 {[%emt 0:02:34]} Nxc3 {[%emt 0:00:45]} 21. Rxc3 {[%emt 0:00:03]} Qf6 {[%emt 0:01:01]} 22. Qxf6+ {[%emt 0:00:15] A rather calm draw.   Weighted Error Value: White=0.07 (flawless) /Black=0.09 (flawless)   Inaccurate:     	---       	Black=2      OK:         	White=4     	Black=8} 1/2-1/2

[Event "Slovakian ECo-C Extraliga 2024-25"]
[Site "Slovakia"]
[Date "2025.01.19"]
[Round "4"]
[White "Hrabusa, Matej"]
[Black "Jurcik, Marian"]
[Result "1/2-1/2"]
[Annotator "TA"]
[ECO "A20"]
[WhiteElo "2356"]
[BlackElo "2411"]
[PlyCount "26"]
[EventDate "2024.09.12"]
[EventType "team-tourn"]
[EventCountry "SVK"]
[SourceTitle "playchess.com"]
[Source "ChessBase"]
[SourceQuality "1"]
[TimeControl "5400+30"]

{[%evp 12,26,27,15,72,33,35,37,34,31,27,12,41,29,35,44,50]} 1. c4 {[%emt 0:00:06]} e5 {[%emt 0:07:21]} 2. g3 {[%emt 0:00:11]} Nf6 {[%emt 0:00:20]} 3. Bg2 {[%emt 0:00:11]} d5 {[%emt 0:00:57]} 4. cxd5 {[%emt 0:00:07]} Nxd5 {[%emt 0:00:05]} 5. Nf3 {[%emt 0:00:31]} Nc6 {[%emt 0:00:07]} 6. O-O {[%emt 0:00:23]} Nf6 {[%emt 0:01:20]} 7. Nc3 {[%emt 0:05:45]} Bc5 {[%emt 0:10:17]} (7... Be7 $11 {remains equal.}) 8. d3 {[%emt 0:02:13]} h6 {[%emt 0:00:45]} 9. b3 {[%emt 0:08:02]} O-O {[%emt 0:00:24]} 10. Bb2 {[%emt 0:00:28]} Re8 {[%emt 0:08:00]} 11. Rc1 {[%emt 0:04:10]} Bb6 {[%emt 0:01:05]} 12. Na4 {[%emt 0:04:32][%cal Oc1c6]} Qd6 {[%emt 0:04:37]} 13. a3 {[%emt 0:16:37]} Bg4 {[%emt 0:06:41]} 1/2-1/2